Workbook

Sheet Index
C8: Historical Series Spreadsheet
C10: 1. Quartely Balance Sheet
C11: 2. Quarterly Accounting FS
C12: 3. Annual Accounting FS
C13: 4. Quarterly Managerial FS
C14: 5. Annual Managerial FS
C15: 6. Expanded Portfolio
C16: 7. Funding
C17: 8. Efficiency and Remuneration
C18: 9. Capital Adequacy
C19: 10. Volume of Transactions
C20: 11. Variation of new FS criteria
C21: 12. Dividends Distributed
C23: Reference Date | E23: June, 30th of 2023
C24: Contact: | E24: ri@brpartners.com.br

Sheet BS (quarterly)
A1: Index
A5: Historical Series Spreadsheet
A7: Balance Sheet (consolidated)
A8: (In thousands of reais)
B9: 12/31/2020 | C9: 03/31/2021 | D9: 06/30/2021 | E9: 09/30/2021 | F9: 12/31/2021 | G9: 03/31/2022 | H9: 06/30/2022 | I9: 09/30/2022 | J9: 2022-12-31 | K9: 2023-03-31 | L9: 2023-06-30
A10: Assets
A11: Cash and Cash Equivalents | B11: 47102 | C11: 49198 | D11: 105778 | E11: 82388 | F11: 94132 | G11: 184467 | H11: 103013 | I11: 85412 | J11: 77470 | K11: 143548 | L11: 246919
A12: Financial Assets at Fair Value through Profit or Loss | B12: =SUM(B13:B15) -> 540349 | C12: =SUM(C13:C15) -> 593666 | D12: =SUM(D13:D15) -> 822251 | E12: 2006311 | F12: 2368744 | G12: 3141911 | H12: 4293937 | I12: 5413327 | J12: 6361883 | K12: 6821263 | L12: 7075445
A13: Government Bonds | B13: 151462 | C13: 151400 | D13: 397109 | E13: 1462171 | F13: 1803817 | G13: 2549499 | H13: 3677256 | I13: 4694170 | J13: 5727370 | K13: 6198285 | L13: 6476420
A14: Private Securities | B14: 255960 | C14: 325978 | D14: 296826 | E14: 329070 | F14: 325438 | G14: 360273 | H14: 384491 | I14: 536987 | J14: 445733 | K14: 429694 | L14: 431300
A15: Investment Funds Quotas | B15: 132927 | C15: 116288 | D15: 128316 | E15: 215070 | F15: 239489 | G15: 232139 | H15: 232190 | I15: 182170 | J15: 188780 | K15: 193284 | L15: 167725
A16: Financial Assets at Fair Value Through other Results | B16: 0 | C16: =C17+C18 -> 25144 | D16: =D17+D18 -> 206534 | E16: 217933 | F16: 257594 | G16: 427587 | H16: 515006 | I16: 525278 | J16: 780966 | K16: 1034162 | L16: 966404
A17: Private Securities | B17: 0 | C17: 25144 | D17: 206534 | E17: 191425 | F17: 230759 | G17: 399359 | H17: 484667 | I17: 493076 | J17: 746216 | K17: 997368 | L17: 912229
A18: Investment Funds Quotas | B18: 0 | C18: 0 | D18: 0 | E18: 26508 | F18: 26835 | G18: 28228 | H18: 30339 | I18: 32202 | J18: 34750 | K18: 36794 | L18: 54175
A19: Derivative Financial Instruments | B19: 38090 | C19: 54101 | D19: 91766 | E19: 142886 | F19: 149852 | G19: 246438 | H19: 177823 | I19: 223174 | J19: 267367 | K19: 215912 | L19: 204051
A20: Financial Assets at Amortized Costs | B20: =B21+B22 -> 85609 | C20: =C21+C22 -> 193094 | D20: =D21+D22 -> 153387 | E20: 130318 | F20: 81568 | G20: 90584 | H20: 235816 | I20: 274087 | J20: 274999 | K20: 295383 | L20: 1091378
A21: Loans Operations | B21: 28802 | C21: 21344 | D21: 72551 | E21: 67715 | F21: 56823 | G21: 55847 | H21: 172577 | I21: 225358 | J21: 237537 | K21: 232563 | L21: 474198
A22: Other Financial Assets at Amortized costs | B22: 56807 | C22: 171750 | D22: 80836 | E22: 62603 | F22: 24745 | G22: 34737 | H22: 63239 | I22: 48729 | J22: 37462 | K22: 62820 | L22: 617180
A23: Other Assets | B23: 28614 | C23: 8578 | D23: 17457 | E23: 23881 | F23: 57856 | G23: 24087 | H23: 24564 | I23: 37321 | J23: 22144 | K23: 22749 | L23: 35085
A24: Deferred Tax Assets | B24: 12470 | C24: 12443 | D24: 19636 | E24: 25017 | F24: 28154 | G24: 24149 | H24: 19760 | I24: 22023 | J24: 24957 | K24: 12280 | L24: 13142
A25: Investments in Subsidiaries | B25: - | C25: - | D25: - | E25: - | F25: - | G25: - | H25: 0 | I25: - | J25: - | K25: - | L25: -
A26: Fixed Assets | B26: 3609 | C26: 3325 | D26: 2794 | E26: 5127 | F26: 4721 | G26: 6493 | H26: 44942 | I26: 44076 | J26: 46596 | K26: 45865 | L26: 46259
A27: Intangible Assets | B27: 5568 | C27: 5458 | D27: 5363 | E27: 5488 | F27: 5360 | G27: 5241 | H27: 5098 | I27: 5035 | J27: 14673 | K27: 15749 | L27: 16615
A29: Total Assets | B29: =B11+B12+B16+B19+B20+B23+B24+B26+B27 -> 761411 | C29: 945007 | D29: 1424966 | E29: 2639349 | F29: 3047981 | G29: 4150957 | H29: 5419959 | I29: =I11+I12+I16+I19+I20+I23+I24+I26+I27 -> 6629733 | J29: =J11+J12+J16+J19+J20+J23+J24+J26+J27 -> 7871055 | K29: =K11+K12+K16+K19+K20+K23+K24+K26+K27 -> 8606911 | L29: =L11+L12+L16+L19+L20+L23+L24+L26+L27 -> 9695298
A31: Passivo
A32: Financial Liabilities at Amortized Cost | B32: =SUM(B33:B36) -> 289506 | C32: =SUM(C33:C36) -> 501211 | D32: =SUM(D33:D36) -> 517339 | E32: =SUM(E33:E36) -> 1672046 | F32: 1959050 | G32: 3091236 | H32: 4320857 | I32: 5543362 | J32: 6744705 | K32: 7450379 | L32: 8223955
A33: Funds from Repurchase Operations | B33: - | C33: 21000 | D33: 49002 | E33: 1100999 | F33: 1228129 | G33: 2080001 | H33: 3230080 | I33: 4208008 | J33: 4983415 | K33: 5599474 | L33: 5686763
A34: Clients funds | B34: 252869 | C34: 348725 | D34: 414184 | E34: 513725 | F34: 671744 | G34: 846008 | H34: 912313 | I34: 1072112 | J34: 1297012 | K34: 1393849 | L34: 1375465
A35: Funds from Bond Inssuances | B35: 7021 | C35: 6436 | D35: 17089 | E35: 55029 | F35: 59177 | G35: 150236 | H35: 155906 | I35: 257870 | J35: 459930 | K35: 455901 | L35: 572924
A36: Other Financial Instruments | B36: 29616 | C36: 125050 | D36: 37064 | E36: 2293 | F36: 0 | G36: 14991 | H36: 22558 | I36: 5372 | J36: 4348 | K36: 1155 | L36: 588803
A37: Derivative Financial Instruments | B37: 15457 | C37: 23261 | D37: 56521 | E37: 24655 | F37: 70478 | G37: 173835 | H37: 125094 | I37: 91153 | J37: 113837 | K37: 208755 | L37: 469663
A38: Suppliers | B38: 3686 | C38: 8481 | D38: 7795 | E38: 8802 | F38: 53244 | G38: 5862 | H38: 4572 | I38: 2879 | J38: 3348 | K38: 2623 | L38: 2712
A39: Amounts Payable | B39: 69869 | C39: 37498 | D39: 37469 | E39: 55206 | F39: 96948 | G39: 34746 | H39: 107748 | I39: 93590 | J39: 79201 | K39: 61201 | L39: 80557
A40: Taxes Payables | B40: 31597 | C40: 4127 | D40: 7412 | E40: 9293 | F40: 7170 | G40: 8985 | H40: 10265 | I40: 10604 | J40: 15135 | K40: 10493 | L40: 13476
A41: Current Tax Liabilities | B41: 32870 | C41: 13189 | D41: 30338 | E41: 48004 | F41: 40801 | G41: 9541 | H41: 37033 | I41: 51264 | J41: 34596 | K41: 4051 | L41: 20370
A42: Diferred Tax Liabilities | B42: 23218 | C42: 31347 | D42: 36152 | E42: 49521 | F42: 53084 | G42: 66078 | H42: 56867 | I42: 65505 | J42: 76016 | K42: 77176 | L42: 77806
A43: Lease Liabilities | B43: 1463 | C43: 1242 | D43: 840 | E43: 426 | F43: 0 | G43: 1985 | H43: 0 | I43: 0 | J43: 0 | K43: 0 | L43: 0
A45: Total do Passivo | B45: =B32+SUM(B37:B43) -> 467666 | C45: 620356 | D45: 693866 | E45: 1867953 | F45: 2280775 | G45: 3392268 | H45: 4662436 | I45: 5858357 | J45: 7066838 | K45: 7814678 | L45: 8888539
A47: Shareholders' Equity
A48: Capital | B48: 268843 | C48: 268843 | D48: 669243 | E48: 669243 | F48: 669243 | G48: 674940 | H48: 674940 | I48: 674940 | J48: 674940 | K48: 674940 | L48: 674940
A49: Capital Reserves | B49: 3653 | C49: 3653 | D49: -26530 | E49: -25263 | F49: -28963 | G49: -29976 | H49: -30193 | I49: -30193 | J49: -30193 | K49: -30193 | L49: -30193
A50: Profit Reserves | B50: 21249 | C50: 21249 | D50: 22961 | E50: 21249 | F50: 128689 | G50: 76574 | H50: 76574 | I50: 57674 | J50: 163828 | K50: 119729 | L50: 119729
A51: Other Comprehensive Results | B51: - | C51: - | D51: - | E51: -1538 | F51: -1763 | G51: -2904 | H51: -3016 | I51: -3408 | J51: -4358 | K51: -5366 | L51: -4345
A52: Retained earnings | B52: - | C52: 30906 | D52: 65426 | E52: 107705 | F52: - | G52: 40055 | H52: 39218 | I52: 72363 | J52: 0 | K52: 33123 | L52: 46628
A54: Total Shareholders' Equity | B54: =SUM(B48:B52) -> 293745 | C54: 324651 | D54: 731100 | E54: 771396 | F54: 767206 | G54: 758689 | H54: 757523 | I54: 771376 | J54: 804217 | K54: 792233 | L54: 806759
A56: Total Liabilities and Shareholders' Equity | B56: =B45+B54 -> 761411 | C56: 945007 | D56: 1424966 | E56: 2639349 | F56: 3047981 | G56: 4150957 | H56: 5419959 | I56: 6629733 | J56: 7871055 | K56: 8606911 | L56: 9695298

Sheet FS (quarterly)
A1: Index
A5: Historical Series Spreadsheet
A7: Accounting FS (consolidated)
A8: (In thousands of reais)
A9: *2020 data follows the previous criteria
B10: 1Q20* | C10: 2Q20* | D10: 3Q20* | E10: 4Q20* | F10: 1Q21 | G10: 2Q21 | H10: 3Q21 | I10: 4Q21 | J10: 1Q22 | K10: 2Q22 | L10: 3Q22 | M10: 4Q22 | N10: 1Q23 | O10: 2Q23
A12: Interest income and gains on financial instruments | B12: 427420.1078 | C12: 406837.2921 | D12: 192510.1143 | E12: 196935.5223 | F12: 344889 | G12: 472210 | H12: 596714 | I12: 649939 | J12: 773760 | K12: 772814 | L12: 843300 | M12: 1037295 | N12: 1020760 | O12: 1276967
A13: Interest expense and losses on financial instruments | B13: -412676.7607 | C13: -395163.4079 | D13: -183097.8351 | E13: -186016.71 | F13: -324459 | G13: -454005 | H13: -556154 | I13: -612363 | J13: -728204 | K13: -730089 | L13: -808596 | M13: -997823 | N13: -966677 | O13: -1230795
A15: Net interest income and gains / losses on financial instruments | B15: =B12+B13 -> 14743.34709 | C15: =C12+C13 -> 11673.88426 | D15: =D12+D13 -> 9412.27916 | E15: 10918.81234 | F15: 20430 | G15: 18205 | H15: 40560 | I15: 37576 | J15: =J12+J13 -> 45556 | K15: =K12+K13 -> 42725 | L15: 34704 | M15: 39472 | N15: 54083 | O15: 46172
A17: Income from service provision | B17: 33047 | C17: 55006 | D17: 45140 | E17: 56086 | F17: 67166.09449 | G17: 71362.44334 | H17: 71655.52544 | I17: 52215.79112 | J17: 61144.66968 | K17: 66992.76818 | L17: 64675.40411 | M17: 58233.59397 | N17: 47424 | O17: 56978
A18: Expenses for specialized technical services | B18: -3094 | C18: -3853 | D18: -3132 | E18: -7353 | F18: -3180 | G18: -3212 | H18: -2432 | I18: -3713 | J18: - | K18: - | L18: - | M18: - | N18: - | O18: -
A19: Other Revenues | B19: 1842.848 | C19: 674.348 | D19: 727 | E19: 427 | F19: 563 | G19: -333 | H19: 81 | I19: 83 | J19: - | K19: - | L19: - | M19: - | N19: - | O19: -
A21: Total Service Revenue | B21: =SUM(B17:B19) -> 31795.848 | C21: =SUM(C17:C19) -> 51827.348 | D21: 42735 | E21: 49160 | F21: 64549.09449 | G21: 67817.44334 | H21: 69304.52544 | I21: 48585.79112 | J21: =SUM(J17:J19) -> 61144.66968 | K21: 66992.76818 | L21: 64675.40411 | M21: 58233.59397 | N21: 47424 | O21: 56978
A23: Total Revenue | B23: =B15+B21 -> 46539.19509 | C23: 63501.23226 | D23: 52147.27916 | E23: 60078.81234 | F23: 84979.09449 | G23: 86022.44334 | H23: 109864.5254 | I23: 86161.79112 | J23: =J15+J21 -> 106700.6697 | K23: 109717.7682 | L23: 99379.40411 | M23: 97705.59397 | N23: 101507 | O23: 103150
A25: Personnel expenses | B25: -6809 | C25: -9433 | D25: -9247 | E25: -22921 | F25: -15532 | G25: -22193 | H25: -25536 | I25: -21022 | J25: -20757 | K25: -20527 | L25: -22726 | M25: -21268 | N25: -27667 | O25: -25839
A26: Administrative expenses | B26: -9894 | C26: -9631 | D26: -10643 | E26: -3243 | F26: -7084 | G26: -3223 | H26: -5334 | I26: -8700 | J26: -10063 | K26: -12852 | L26: -14200 | M26: -16613 | N26: -12733 | O26: -15488
A27: Loss due to impairment | B27: 0 | C27: 0 | D27: 0 | E27: 0 | F27: -9789.092384 | G27: -10279.78016 | H27: -10341.92606 | I27: -7996.982812 | J27: -9034.200701 | K27: -11871.76818 | L27: -9715.40411 | M27: -8427.627131 | N27: -7421 | O27: -8949
A28: Other revenues | B28: 27 | C28: -96 | D28: -96 | E28: -194 | F28: 31 | G28: -439 | H28: 353 | I28: 131 | J28: 224 | K28: -1047 | L28: 1119 | M28: -47 | N28: -1367 | O28: -454
A29: Other expenses | B29: -908.442 | C29: -1190.122 | D29: -1053 | E29: -3767 | F29: -205.3689567 | G29: 308.8410836 | H29: -691.7663802 | I29: -524.1001827 | J29: -176.468979 | K29: 403 | L29: -848 | M29: -1703.531021 | N29: -672 | O29: 509
A31: Operational expenses | B31: =SUM(B25:B29) -> -17584.442 | C31: -20350.122 | D31: -21039 | E31: -30125 | F31: -32579.46134 | G31: -35825.93908 | H31: -41550.69244 | I31: -38112.083 | J31: -39806.66968 | K31: -45894.76818 | L31: -46370.40411 | M31: -48059.15815 | N31: -49860 | O31: -50221
A33: Non-operating result | B33: -46 | C33: -717 | D33: -1257 | E33: 2397 | F33: 4 | G33: 5 | H33: 54 | I33: 44 | J33: -692 | K33: -455 | L33: -5 | M33: 0 | N33: 13 | O33: 21
A34: Income before income taxes and equity equivalence results | B34: =B23+B31+B33 -> 28908.75309 | C34: 42434.11026 | D34: 29851.27916 | E34: 32350.81234 | F34: 52403.63315 | G34: 50201.50426 | H34: 68367.833 | I34: 48093.70812 | J34: 66202 | K34: 63368 | L34: 53004 | M34: 49646.43582 | N34: 51660 | O34: 52950
A36: Equity pickup result | B36: 0 | C36: 0 | D36: 0 | E36: 0 | F36: 0 | G36: 0 | H36: 0 | I36: 0 | J36: 0 | K36: 0 | L36: 0 | M36: 0 | N36: 0 | O36: 0
A37: Income before income taxes | B37: =B34+B36 -> 28908.75309 | C37: 42434.11026 | D37: 29851.27916 | E37: 32350.81234 | F37: 52403.63315 | G37: 50201.50426 | H37: 68367.833 | I37: 48093.70812 | J37: 66202 | K37: 63368 | L37: 53004 | M37: =M34+M36 -> 49646.43582 | N37: =N34+N36 -> 51660 | O37: =O34+O36 -> 52950
A39: Taxes on profits | B39: -7261 | C39: -18634 | D39: -9192 | E39: -9722 | F39: -21428 | G39: -15232 | H39: -26607 | I39: -17140 | J39: -26147 | K39: -23257 | L39: -19859 | M39: -15856 | N39: -18537 | O39: -14246
A40: Net income for the period | B40: =B37+B39 -> 21647.75309 | C40: =C37+C39 -> 23800.11026 | D40: 20659.27916 | E40: 22628.81234 | F40: 30975.63315 | G40: 34969.50426 | H40: 41760.833 | I40: 30953.70812 | J40: =J37+J39 -> 40055 | K40: 40111 | L40: 33145 | M40: 33790.43582 | N40: 33123 | O40: 38704

Sheet Accounting FS (annual)
A1: Index
A5: Historical Series Spreadsheet
A7: Accounting FS (consolidated)
A8: (In thousands of reais)
A9: *2020 data follows the previous criteria
B10: 2020* | C10: 2021 | D10: 2022
A12: Interest income and gains on financial instruments | B12: 1223703 | C12: 2063752 | D12: 3427169
A13: Interest expense and losses on financial instruments | B13: -1176956 | C13: -1946981 | D13: -3264712
A15: Net interest income and gains / losses on financial instruments | B15: =B12+B13 -> 46747 | C15: =C12+C13 -> 116771 | D15: =D12+D13 -> 162457
A17: Income from service provision | B17: 189279 | C17: 262400 | D17: 251046
A18: Expenses for specialized technical services | B18: -17432 | C18: -12537 | D18: 0
A19: Other Revenues | B19: 3672 | C19: 394 | D19: 0
A21: Total Service Revenue | B21: =SUM(B17:B19) -> 175519 | C21: =SUM(C17:C19) -> 250257 | D21: =SUM(D17:D19) -> 251046
A23: Total Revenue | B23: =B15+B21 -> 222266 | C23: =C15+C21 -> 367028 | D23: =D15+D21 -> 413503
A25: Personnel expenses | B25: -48410 | C25: -84283 | D25: -85278
A26: Administrative expenses | B26: -33411 | C26: -24341 | D26: -53728
A27: Loss due to impairment | B27: 0 | C27: -38408 | D27: -39049
A28: Other revenues | B28: -359 | C28: 76 | D28: 249
A29: Other expenses | B29: -6918.564 | C29: -1112 | D29: -2325
A31: Operational expenses | B31: =SUM(B25:B29) -> -89098.564 | C31: =SUM(C25:C29) -> -148068 | D31: =SUM(D25:D29) -> -180131
A33: Non-operating result | B33: 377 | C33: 107 | D33: -1152
A34: Income before income taxes and equity equivalence results | B34: =B33+B31+B23 -> 133544.436 | C34: =C33+C31+C23 -> 219067 | D34: =D33+D31+D23 -> 232220
A36: Equity pickup result | B36: - | C36: - | D36: 0
A37: Income before income taxes | B37: =B34 -> 133544.436 | C37: =C34 -> 219067 | D37: =D34 -> 232220
A39: Taxes on profits | B39: -44809 | C39: -80407 | D39: -85119
A40: Net income for the period | B40: 88735.67534 | C40: =C37+C39 -> 138660 | D40: =D37+D39 -> 147101
A42: Resultado atribuido aos Acionistas da Companhia | B42: =B40 -> 88735.67534 | C42: =C40 -> 138660 | D42: =D40 -> 147101

Sheet Managerial FS (quaterly)
A1: Index
A5: Historical Series Spreadsheet
A8: Managerial Financial Statement (consolidated)
A9: (In millions of reais)
A10: *2020 data follows the previous criteria
B11: 1Q20* | C11: 2Q20* | D11: 3Q20* | E11: 4Q20* | F11: 1Q21 | G11: 2Q21 | H11: 3Q21 | I11: 4Q21 | J11: 1Q22 | K11: 2Q22 | L11: 3Q22 | M11: 4Q22 | N11: 1Q23 | O11: 2Q23
A12: Total Revenues | B12: =SUM(B13:B17) -> 46.539 | C12: =SUM(C13:C17) -> 63.502 | D12: 52.147 | E12: 60.078 | F12: =SUM(F13:F17) -> 84.97909449 | G12: 86.02244335 | H12: =SUM(H13:H17) -> 109.8645254 | I12: =SUM(I13:I17) -> 86.16179112 | J12: =SUM(J13:J17) -> 106.7006697 | K12: 109.7177682 | L12: 99.37940411 | M12: 97.70559397 | N12: 101.5067707 | O12: =SUM(O13:O17) -> 103.1499071
A13: Investment Banking | B13: 22.737 | C13: 44.627 | D13: 28.152 | E13: 35.375 | F13: 50.8689841 | G13: 51.07110023 | H13: 50.01485532 | I13: 31.62005389 | J13: 41.09587038 | K13: 44.27021207 | L13: 40.61099866 | M13: 33.62604346 | N13: 31.25076085 | O13: 35.18090665
A14: Capital Markets | B14: 11.266 | C14: 10.992 | D14: 18.094 | E14: 16.949 | F14: 24.9883258 | G14: 20.44145642 | H14: 25.08404271 | I14: 20.94431914 | J14: 25.59568849 | K14: 26.37720513 | L14: 24.80632532 | M14: 19.76642213 | N14: 24.12611533 | O14: 30.0343646
A15: Treasury Sales & Structuring | B15: 1.308 | C15: 6.061 | D15: 3.804 | E15: 4.196 | F15: 4.00179037 | G15: 10.37428375 | H15: 23.98108616 | I15: 14.19294279 | J15: 14.72417713 | K15: 19.22981144 | L15: 8.59798949 | M15: 20.05424114 | N15: 11.77482214 | O15: 16.64114534
A16: Investments | B16: 0.566 | C16: 0.697 | D16: 0.613 | E16: 0.668 | F16: 0.62999422 | G16: 0.67049835 | H16: 0.8071168 | I16: 4.78677304 | J16: 1.25345542 | K16: 1.25035201 | L16: 1.33384474 | M16: 1.66984948 | N16: 1.34074769 | O16: 1.29748242
A17: Capital Revenues | B17: 10.662 | C17: 1.125 | D17: 1.484 | E17: 2.89 | F17: 4.49 | G17: 3.465104594 | H17: 9.977424452 | I17: 14.61770226 | J17: 24.03147825 | K17: 18.59018753 | L17: 24.0302459 | M17: 22.58903776 | N17: 33.01432467 | O17: 19.99600813
A18: Expenses | B18: =SUM(B19:B22) -> -17.584442 | C18: =SUM(C19:C22) -> -20.350122 | D18: =SUM(D19:D22) -> -21.039 | E18: =SUM(E19:E22) -> -30.125 | F18: =SUM(F19:F22) -> -32.57946134 | G18: -35.82593908 | H18: -41.55069244 | I18: -38.112083 | J18: -39.80666968 | K18: -45.89476818 | L18: -46.37040411 | M18: =SUM(M19:M22) -> -48.05915815 | N18: =SUM(N19:N22) -> -49.86 | O18: =SUM(O19:O22) -> -50.221
A19: Personnel | B19: -6.809 | C19: -9.433 | D19: -9.247 | E19: -22.921 | F19: -15.532 | G19: -22.193 | H19: -25.536 | I19: -21.022 | J19: -20.757 | K19: -20.527 | L19: -22.726 | M19: -21.268 | N19: -27.667 | O19: -25.839
A20: Administrative | B20: -9.894 | C20: -9.631 | D20: -10.643 | E20: -3.243 | F20: -7.084 | G20: -3.223 | H20: -5.334 | I20: -8.7 | J20: -10.063 | K20: -12.852 | L20: -14.2 | M20: -16.613 | N20: -12.733 | O20: -15.488
A21: Tax on Revenues | B21: - | C21: - | D21: - | E21: - | F21: -9.789092384 | G21: -10.27978016 | H21: -10.34192606 | I21: -7.996982812 | J21: -9.034200701 | K21: -11.87176818 | L21: -9.71540411 | M21: -8.427627131 | N21: -7.421 | O21: -8.949
A22: Others | B22: -0.881442 | C22: -1.286122 | D22: -1.149 | E22: -3.961 | F22: -0.1743689567 | G22: -0.1301589164 | H22: -0.3387663802 | I22: -0.3931001827 | J22: 0.04753102095 | K22: -0.644 | L22: 0.271 | M22: -1.750531021 | N22: -2.039 | O22: 0.055
A23: Operating Profit | B23: =B12+B18 -> 28.954558 | C23: =C12+C18 -> 43.151878 | D23: 31.108 | E23: 29.953 | F23: 52.39963315 | G23: 50.19650427 | H23: 68.313833 | I23: 48.04970812 | J23: =J12+J18 -> 66.894 | K23: =K12+K18 -> 63.823 | L23: =L12+L18 -> 53.009 | M23: =M12+M18 -> 49.64643582 | N23: =N12+N18 -> 51.64677068 | O23: =O12+O18 -> 52.92890714
A24: Non-operating Profit | B24: -0.046 | C24: -0.717 | D24: -1.257 | E24: 2.397 | F24: 0.004 | G24: 0.005 | H24: 0.054 | I24: 0.044 | J24: -0.692 | K24: -0.455 | L24: -0.005 | M24: 0 | N24: 0.013 | O24: 0.021
A25: IR & CSLL | B25: -7.261 | C25: -18.634 | D25: -9.192 | E25: -9.722 | F25: -21.428 | G25: -15.232 | H25: -26.607 | I25: -17.14 | J25: -26.147 | K25: -23.257 | L25: -19.859 | M25: -15.856 | N25: -18.537 | O25: -14.246
A26: Net Income | B26: =SUM(B23:B25) -> 21.647558 | C26: =SUM(C23:C25) -> 23.800878 | D26: 20.659 | E26: 22.628 | F26: 30.97563315 | G26: 34.96950427 | H26: 41.760833 | I26: 30.95370812 | J26: =SUM(J23:J25) -> 40.055 | K26: 40.111 | L26: 33.145 | M26: 33.79043582 | N26: 33.12277068 | O26: 38.70390714
A27: Net Margin | B27: =B26/B12 -> 0.465148757 | C27: =C26/C12 -> 0.3748051715 | D27: 0.3961685236 | E27: 0.3766436965 | F27: 0.3645088635 | G27: 0.4065160545 | H27: 0.3801120774 | I27: 0.3592509826 | J27: =J26/J12 -> 0.3753959569 | K27: =K26/K12 -> 0.365583448 | L27: =L26/L12 -> 0.3335198102 | M27: =M26/M12 -> 0.3458393163 | N27: =N26/N12 -> 0.3263109491 | O27: =O26/O12 -> 0.3752199901
A29: ROAE | B29: 0.2722227071 | C29: 0.306887837 | D29: 0.2737107085 | E29: 0.2979088557 | F29: 0.4007113188 | G29: 0.2649837164 | H29: 0.2223570269 | I29: 0.1609503261 | J29: 0.2100039194 | K29: 0.2116379504 | L29: 0.1734319926 | M29: 0.1715693625 | N29: 0.1659821262 | O29: 0.1936415299

Sheet Managenrial FS (annual)
A1: Index
A5: Historical Series Spreadsheet
A7: Managerial Financial Statement (consolidated)
A8: (In millions of reais)
A9: *2020 data follows the previous criteria
B10: 2020* | C10: 2021 | D10: 2022
A11: Total Revenues | B11: =SUM(B12:B16) -> 222.266 | C11: =SUM(C12:C16) -> 367.0278544 | D11: =SUM(D12:D16) -> 413.5034359
A12: Investment Banking | B12: =SUM('Managerial FS (quaterly)'!B13:E13) -> 130.891 | C12: =SUM('Managerial FS (quaterly)'!F13:I13) -> 183.5749935 | D12: =SUM('Managerial FS (quaterly)'!J13:M13) -> 159.6031246
A13: Capital Markets | B13: =SUM('Managerial FS (quaterly)'!B14:E14) -> 57.301 | C13: =SUM('Managerial FS (quaterly)'!F14:I14) -> 91.45814407 | D13: =SUM('Managerial FS (quaterly)'!J14:M14) -> 96.54564108
A14: Treasury Sales & Structuring | B14: =SUM('Managerial FS (quaterly)'!B15:E15) -> 15.369 | C14: =SUM('Managerial FS (quaterly)'!F15:I15) -> 52.55010307 | D14: =SUM('Managerial FS (quaterly)'!J15:M15) -> 62.6062192
A15: Investments | B15: =SUM('Managerial FS (quaterly)'!B16:E16) -> 2.544 | C15: =SUM('Managerial FS (quaterly)'!F16:I16) -> 6.89438241 | D15: =SUM('Managerial FS (quaterly)'!J16:M16) -> 5.50750165
A16: Capital Revenues | B16: =SUM('Managerial FS (quaterly)'!B17:E17) -> 16.161 | C16: =SUM('Managerial FS (quaterly)'!F17:I17) -> 32.55023131 | D16: =SUM('Managerial FS (quaterly)'!J17:M17) -> 89.24094944
A17: Expenses | B17: =SUM(B18:B21) -> -89.098564 | C17: =SUM(C18:C21) -> -148.0681759 | D17: =SUM(D18:D21) -> -180.1310001
A18: Personnel | B18: =SUM('Managerial FS (quaterly)'!B19:E19) -> -48.41 | C18: =SUM('Managerial FS (quaterly)'!F19:I19) -> -84.283 | D18: =SUM('Managerial FS (quaterly)'!J19:M19) -> -85.278
A19: Administrative | B19: =SUM('Managerial FS (quaterly)'!B20:E20) -> -33.411 | C19: =SUM('Managerial FS (quaterly)'!F20:I20) -> -24.341 | D19: =SUM('Managerial FS (quaterly)'!J20:M20) -> -53.728
A20: Tax on Revenues | B20: =SUM('Managerial FS (quaterly)'!B21:E21) -> 0 | C20: =SUM('Managerial FS (quaterly)'!F21:I21) -> -38.40778142 | D20: =SUM('Managerial FS (quaterly)'!J21:M21) -> -39.04900012
A21: Others | B21: =SUM('Managerial FS (quaterly)'!B22:E22) -> -7.277564 | C21: =SUM('Managerial FS (quaterly)'!F22:I22) -> -1.036394436 | D21: =SUM('Managerial FS (quaterly)'!J22:M22) -> -2.076
A22: Operating Profit | B22: =B11+B17 -> 133.167436 | C22: =C11+C17 -> 218.9596785 | D22: =D11+D17 -> 233.3724358
A23: Non-operating Profit | B23: =SUM('Managerial FS (quaterly)'!B24:E24) -> 0.377 | C23: =SUM('Managerial FS (quaterly)'!F24:I24) -> 0.107 | D23: =SUM('Managerial FS (quaterly)'!J24:M24) -> -1.152
A24: Equity Income Result | B24: 0 | C24: 0 | D24: 0
A25: IR & CSLL | B25: =SUM('Managerial FS (quaterly)'!B25:E25) -> -44.809 | C25: =SUM('Managerial FS (quaterly)'!F25:I25) -> -80.407 | D25: =SUM('Managerial FS (quaterly)'!J25:M25) -> -85.119
A26: Net Income | B26: =SUM(B22:B25) -> 88.735436 | C26: =SUM(C22:C25) -> 138.6596785 | D26: =SUM(D22:D25) -> 147.1014358
A27: Net Margin | B27: =B26/B11 -> 0.3992308135 | C27: =C26/C11 -> 0.3777906142 | D27: =D26/D11 -> 0.3557441681
A29: ROE | B29: 0.295265143 | C29: 0.2613891069 | D29: 0.187220673

Sheet Expanded Portfolio
A1: Index
A5: Historical Series Spreadsheet
A7: Private Securities and Bridge Loans
A8: (In millions of reais)
B10: 1Q20 | C10: 2Q20 | D10: 3Q20 | E10: 4Q20 | F10: 1Q21 | G10: 2Q21 | H10: 3Q21 | I10: 4Q21 | J10: 1Q22 | K10: 2Q22 | L10: 3Q22 | M10: 4Q22 | N10: 1Q23 | O10: 2Q23
A11: Corporate Securities | B11: 79.04 | C11: 138.494 | D11: 179.116 | E11: 255.96 | F11: 351.122 | G11: 503.36 | H11: 573.51 | I11: 609.865 | J11: 816.086 | K11: 939.396 | L11: 1104.557 | M11: 1266.413 | N11: 1505.817 | O11: 1430.969
A12: Bridge Loans | B12: 23.583 | C12: 29.499 | D12: 29.185 | E12: 28.802 | F12: 21.344 | G12: 72.551 | H12: 67.715 | I12: 56.823 | J12: 55.847 | K12: 172.577 | L12: 225.358 | M12: 237.537 | N12: 232.563 | O12: 474.198
A14: Total | B14: =SUM(B11:B12) -> 102.623 | C14: =SUM(C11:C12) -> 167.993 | D14: =SUM(D11:D12) -> 208.301 | E14: =SUM(E11,E12) -> 284.762 | F14: =SUM(F11,F12) -> 372.466 | G14: =SUM(G11:G12) -> 575.911 | H14: 641.225 | I14: 666.688 | J14: 871.933 | K14: 1111.973 | L14: 1329.915 | M14: 1503.95 | N14: 1738.38 | O14: 1905.167

Sheet Funding
A1: Index
A5: Historical Series Spreadsheet
A7: Funding and Average Term
A8: (In millions of reais)
B10: 1Q20 | C10: 2Q20 | D10: 3Q20 | E10: 4Q20 | F10: 1Q21 | G10: 2Q21 | H10: 3Q21 | I10: 4Q21 | J10: 1Q22 | K10: 2Q22 | L10: 3Q22 | M10: 4Q22 | N10: 1Q23 | O10: 2Q23
A11: Volume de Captação | B11: 126.5525003 | C11: 202.3779249 | D11: 255.0471449 | E11: 293.8068323 | F11: 342.0841893 | G11: 485.11 | H11: 654.513 | I11: 852.1 | J11: 1015.842 | K11: 1121.373 | L11: 1272.903909 | M11: 1771.242557 | N11: 1823.224875 | O11: 1879.1
A12: Prazo Médio (dias corridos) sem recursos próprios* | B12: 13.34 | C12: 10.9 | D12: 61.45 | E12: 138.7867873 | F12: 184.3568847 | G12: 191.4055275 | H12: 263.4120114 | I12: 309.1130237 | J12: 288.86 | K12: 256.4398397 | L12: 256.85 | M12: 238.27 | N12: 213.76 | O12: 189
A14: 1Q21 | B14: Liquidity | C14: Until 3 months | D14: 3 to 6 months | E14: 6 months to 1 year | F14: Above 1 year
A15: Deadline per track (1Q21) | B15: 72.94 | C15: 117.813 | D15: 29.885 | E15: 93.953 | F15: 27.491
A17: 2Q21 | B17: Liquidity | C17: Until 3 months | D17: 3 to 6 months | E17: 6 months to 1 year | F17: Above 1 year
A18: Deadline per track (2Q21) | B18: 126.1 | C18: 87.3 | D18: 116.4 | E18: 121.3 | F18: 34
A20: 3Q21 | B20: Liquidity | C20: Until 3 months | D20: 3 to 6 months | E20: 6 months to 1 year | F20: Above 1 year
A21: Deadline per track (3Q21) | B21: 163.3 | C21: 117.81234 | D21: 65.4513 | E21: 209.44416 | F21: 98.17695
A23: 4Q21 | B23: Liquidity | C23: Until 3 months | D23: 3 to 6 months | E23: 6 months to 1 year | F23: Above 1 year
A24: Deadline per track (4Q21) | B24: 196 | C24: 85.2 | D24: 102.3 | E24: 264.2 | F24: 178.9
A26: 1Q22 | B26: Liquidity | C26: Until 3 months | D26: 3 to 6 months | E26: 6 months to 1 year | F26: Above 1 year
A27: Deadline per track (1Q22) | B27: 91.4 | C27: 111.7 | D27: 182.85156 | E27: 426.65364 | F27: 203.1684
A29: 2Q22 | B29: Liquidity | C29: Until 3 months | D29: 3 to 6 months | E29: 6 months to 1 year | F29: Above 1 year
A30: Deadline per track (2Q22) | B30: 112.1373 | C30: 190.63341 | D30: 168.20595 | E30: 437.33547 | F30: 213.06087
A32: 3Q22 | B32: Liquidity | C32: Until 3 months | D32: 3 to 6 months | E32: 6 months to 1 year | F32: Above 1 year
A33: Deadline per track (3Q22) | B33: 112.5366949 | C33: 171.4554816 | D33: 340.9695563 | E33: 394.7888455 | F33: 253.1533311
A35: 4Q22 | B35: Liquidity | C35: Until 3 months | D35: 3 to 6 months | E35: 6 months to 1 year | F35: Above 1 year
A36: Deadline per track (4Q22) | B36: 119.7461664 | C36: 554.1095375 | D36: 212.1344183 | E36: 584.8400307 | F36: 300.4124039
A38: 1Q23 | B38: Liquidity | C38: Until 3 months | D38: 3 to 6 months | E38: 6 months to 1 year | F38: Above 1 year
A39: Deadline per track (1Q23) | B39: 94.3770673 | C39: 501.4968751 | D39: 371.9847994 | E39: 562.664013 | F39: 292.7021202
A41: 2Q23 | B41: Liquidity | C41: Until 3 months | D41: 3 to 6 months | E41: 6 months to 1 year | F41: Above 1 year
A42: Deadline per track (2Q23) | B42: 141.1 | C42: 632.9 | D42: 417.4 | E42: 361.2 | F42: 326.6
A44: *Since 4Q22 we started to show the average term excluding own resources, considering only third-party resources

Sheet Efficiency & Compensation
A1: Index
A5: Historical Series Spreadsheet
A7: Efficiency & Compensation
A8: (In millions of reais)
A9: *2020 data follows the previous criteria
B11: 1Q20* | C11: 2Q20* | D11: 3Q20* | E11: 4Q20* | F11: 1Q21 | G11: 2Q21 | H11: 3Q21 | I11: 4Q21 | J11: 1Q22 | K11: 2Q22 | L11: 3Q22 | M11: 4Q22 | N11: 1Q23 | O11: 2Q23
A12: Efficiency Ratio* | B12: =(B15+B16)/(B19+B18)*-1 -> 0.3658320929 | C12: =(C15+C16)/(C19+C18)*-1 -> 0.3064169568 | D12: 0.3900152947 | E12: 0.4662401768 | F12: =(F15+F16)/(F19+F18+F17)*-1 -> 0.3014838248 | G12: 0.3361348793 | H12: =(H15+H16)/(H19+H18+H17)*-1 -> 0.3112402401 | I12: 0.3821698239 | J12: 0.315410279 | K12: 0.343398284 | L12: 0.4105854228 | M12: =(M15+M16)/(M19+M18+M17)*-1 -> 0.432790012 | N12: =(N15+N16)/(N19+N18+N17)*-1 -> 0.4389073044 | O12: =(O15+O16)/(O19+O18+O17)*-1 -> 0.4384552783
A13: Compesation Ratio** | B13: =(B15)/B19*-1 -> 0.1463073981 | C13: =(C15)/C19*-1 -> 0.1485465025 | D13: 0.1773256371 | E13: 0.3815206898 | F13: 0.1827743646 | G13: 0.2579908119 | H13: 0.2324317144 | I13: 0.2439828574 | J13: 0.1945348615 | K13: 0.1870891136 | L13: 0.2286791736 | M13: =(M15)/M19*-1 -> 0.217674333 | N13: =(N15)/N19*-1 -> 0.2725630991 | O13: =(O15)/O19*-1 -> 0.2504994984
A14: Expenses | B14: =SUM(B15:B18) -> -17.584442 | C14: -20.350122 | D14: -21.039 | E14: -30.125 | F14: -32.57946134 | G14: -35.82593908 | H14: -41.55069244 | I14: -38.112083 | J14: -39.80666968 | K14: -45.89476818 | L14: -46.37040411 | M14: -48.05915815 | N14: -49.86 | O14: -50.221
A15: Personnel Expenses | B15: ='Managerial FS (quaterly)'!B19 -> -6.809 | C15: ='Managerial FS (quaterly)'!C19 -> -9.433 | D15: ='Managerial FS (quaterly)'!D19 -> -9.247 | E15: ='Managerial FS (quaterly)'!E19 -> -22.921 | F15: ='Managerial FS (quaterly)'!F19 -> -15.532 | G15: ='Managerial FS (quaterly)'!G19 -> -22.193 | H15: ='Managerial FS (quaterly)'!H19 -> -25.536 | I15: ='Managerial FS (quaterly)'!I19 -> -21.022 | J15: ='Managerial FS (quaterly)'!J19 -> -20.757 | K15: ='Managerial FS (quaterly)'!K19 -> -20.527 | L15: ='Managerial FS (quaterly)'!L19 -> -22.726 | M15: ='Managerial FS (quaterly)'!M19 -> -21.268 | N15: -27.667 | O15: -25.839
A16: Administrative Expanses | B16: ='Managerial FS (quaterly)'!B20 -> -9.894 | C16: ='Managerial FS (quaterly)'!C20 -> -9.631 | D16: ='Managerial FS (quaterly)'!D20 -> -10.643 | E16: ='Managerial FS (quaterly)'!E20 -> -3.243 | F16: ='Managerial FS (quaterly)'!F20 -> -7.084 | G16: ='Managerial FS (quaterly)'!G20 -> -3.223 | H16: ='Managerial FS (quaterly)'!H20 -> -5.334 | I16: ='Managerial FS (quaterly)'!I20 -> -8.7 | J16: ='Managerial FS (quaterly)'!J20 -> -10.063 | K16: ='Managerial FS (quaterly)'!K20 -> -12.852 | L16: ='Managerial FS (quaterly)'!L20 -> -14.2 | M16: ='Managerial FS (quaterly)'!M20 -> -16.613 | N16: -12.733 | O16: -15.488
A17: Tax Expenses | B17: ='Managerial FS (quaterly)'!B21 -> - | C17: ='Managerial FS (quaterly)'!C21 -> - | D17: ='Managerial FS (quaterly)'!D21 -> - | E17: ='Managerial FS (quaterly)'!E21 -> - | F17: ='Managerial FS (quaterly)'!F21 -> -9.789092384 | G17: ='Managerial FS (quaterly)'!G21 -> -10.27978016 | H17: ='Managerial FS (quaterly)'!H21 -> -10.34192606 | I17: ='Managerial FS (quaterly)'!I21 -> -7.996982812 | J17: ='Managerial FS (quaterly)'!J21 -> -9.034200701 | K17: ='Managerial FS (quaterly)'!K21 -> -11.87176818 | L17: ='Managerial FS (quaterly)'!L21 -> -9.71540411 | M17: ='Managerial FS (quaterly)'!M21 -> -8.427627131 | N17: -7.421 | O17: -8.949
A18: Others | B18: ='Managerial FS (quaterly)'!B22 -> -0.881442 | C18: ='Managerial FS (quaterly)'!C22 -> -1.286122 | D18: ='Managerial FS (quaterly)'!D22 -> -1.149 | E18: ='Managerial FS (quaterly)'!E22 -> -3.961 | F18: ='Managerial FS (quaterly)'!F22 -> -0.1743689567 | G18: ='Managerial FS (quaterly)'!G22 -> -0.1301589164 | H18: ='Managerial FS (quaterly)'!H22 -> -0.3387663802 | I18: ='Managerial FS (quaterly)'!I22 -> -0.3931001827 | J18: ='Managerial FS (quaterly)'!J22 -> 0.04753102095 | K18: ='Managerial FS (quaterly)'!K22 -> -0.644 | L18: ='Managerial FS (quaterly)'!L22 -> 0.271 | M18: ='Managerial FS (quaterly)'!M22 -> -1.750531021 | N18: -2.039 | O18: 0.055
A19: Revenues | B19: =SUM(B20:B24) -> 46.539 | C19: =SUM(C20:C24) -> 63.502 | D19: =SUM(D20:D24) -> 52.147 | E19: =SUM(E20:E24) -> 60.078 | F19: =SUM(F20:F24) -> 84.97909449 | G19: 86.02244335 | H19: 109.8645254 | I19: 86.16179112 | J19: =SUM(J20:J24) -> 106.7006697 | K19: 109.7177682 | L19: 99.37940411 | M19: =SUM(M20:M24) -> 97.70559397 | N19: 101.5067707 | O19: 103.1499071
A20: Investment Banking | B20: 22.737 | C20: 44.627 | D20: 28.152 | E20: 35.375 | F20: ='Managerial FS (quaterly)'!F13 -> 50.8689841 | G20: ='Managerial FS (quaterly)'!G13 -> 51.07110023 | H20: ='Managerial FS (quaterly)'!H13 -> 50.01485532 | I20: ='Managerial FS (quaterly)'!I13 -> 31.62005389 | J20: ='Managerial FS (quaterly)'!J13 -> 41.09587038 | K20: ='Managerial FS (quaterly)'!K13 -> 44.27021207 | L20: ='Managerial FS (quaterly)'!L13 -> 40.61099866 | M20: ='Managerial FS (quaterly)'!M13 -> 33.62604346 | N20: 31.25076085 | O20: 35.18090665
A21: Capital Markets | B21: 11.266 | C21: 10.992 | D21: 18.094 | E21: 16.949 | F21: ='Managerial FS (quaterly)'!F14 -> 24.9883258 | G21: ='Managerial FS (quaterly)'!G14 -> 20.44145642 | H21: ='Managerial FS (quaterly)'!H14 -> 25.08404271 | I21: ='Managerial FS (quaterly)'!I14 -> 20.94431914 | J21: ='Managerial FS (quaterly)'!J14 -> 25.59568849 | K21: ='Managerial FS (quaterly)'!K14 -> 26.37720513 | L21: ='Managerial FS (quaterly)'!L14 -> 24.80632532 | M21: ='Managerial FS (quaterly)'!M14 -> 19.76642213 | N21: 24.12611533 | O21: 30.0343646
A22: Treasury Sales & Structuring | B22: 1.308 | C22: 6.061 | D22: 3.804 | E22: 4.196 | F22: ='Managerial FS (quaterly)'!F15 -> 4.00179037 | G22: ='Managerial FS (quaterly)'!G15 -> 10.37428375 | H22: ='Managerial FS (quaterly)'!H15 -> 23.98108616 | I22: ='Managerial FS (quaterly)'!I15 -> 14.19294279 | J22: ='Managerial FS (quaterly)'!J15 -> 14.72417713 | K22: ='Managerial FS (quaterly)'!K15 -> 19.22981144 | L22: ='Managerial FS (quaterly)'!L15 -> 8.59798949 | M22: ='Managerial FS (quaterly)'!M15 -> 20.05424114 | N22: 11.77482214 | O22: 16.64114534
A23: Investments | B23: 0.566 | C23: 0.697 | D23: 0.613 | E23: 0.668 | F23: ='Managerial FS (quaterly)'!F16 -> 0.62999422 | G23: ='Managerial FS (quaterly)'!G16 -> 0.67049835 | H23: ='Managerial FS (quaterly)'!H16 -> 0.8071168 | I23: ='Managerial FS (quaterly)'!I16 -> 4.78677304 | J23: ='Managerial FS (quaterly)'!J16 -> 1.25345542 | K23: ='Managerial FS (quaterly)'!K16 -> 1.25035201 | L23: ='Managerial FS (quaterly)'!L16 -> 1.33384474 | M23: ='Managerial FS (quaterly)'!M16 -> 1.66984948 | N23: 1.34074769 | O23: 1.29748242
A24: Capital Revenues | B24: 10.662 | C24: 1.125 | D24: 1.484 | E24: 2.89 | F24: ='Managerial FS (quaterly)'!F17 -> 4.49 | G24: ='Managerial FS (quaterly)'!G17 -> 3.465104594 | H24: ='Managerial FS (quaterly)'!H17 -> 9.977424452 | I24: ='Managerial FS (quaterly)'!I17 -> 14.61770226 | J24: ='Managerial FS (quaterly)'!J17 -> 24.03147825 | K24: ='Managerial FS (quaterly)'!K17 -> 18.59018753 | L24: ='Managerial FS (quaterly)'!L17 -> 24.0302459 | M24: ='Managerial FS (quaterly)'!M17 -> 22.58903776 | N24: 33.01432467 | O24: 19.99600813
A27: * Efficiency Ratio = (Personnel + Administrative Expenses) / (Total Revenue + Other Expenses)*-1
A28: ** Remuneration Index = (Personnel Expenses / Total Revenue)*-1

Sheet Capital Adequacy
A1: Index
A5: Historical Series Spreadsheet
A7: Capital Adequacy
A8: (In millions of reais)
B10: 1Q20 | C10: 2Q20 | D10: 3Q20 | E10: 4Q20 | F10: 1Q21 | G10: 2Q21 | H10: 3Q21 | I10: 3Q21 | J10: 4Q21 | K10: 1Q22 | L10: 2Q22 | M10: 3Q22 | N10: 4Q22 | O10: 1Q23 | P10: 2Q23
A11: PR | B11: 166.2889 | C11: 169.126 | D11: 171.0308186 | E11: 247.748 | F11: 244.885 | G11: 249.8058967 | H11: 604 | I11: 620.193 | J11: 632.7828168 | K11: 640.319628 | L11: 655.2712411 | M11: 663.6562816 | N11: 663.3599846 | O11: 671.474739 | P11: 694.9089307
A12: RWA | B12: 386.2172 | C12: 370.03 | D12: 433.150477 | E12: 626.331 | F12: 671.724 | G12: 1094.648113 | H12: 1094.6 | I12: 1769.923 | J12: 1834.927628 | K12: 2222.97594 | L12: 2277.400006 | M12: 2680.583572 | N12: 2727.478517 | O12: 3368.544 | P12: 3728.766151
A13: Basel | B13: =B11/B12 -> 0.4305579865 | C13: 0.4570602384 | D13: 0.394853123 | E13: 0.3955544273 | F13: 0.3645619332 | G13: 0.2282065751 | H13: 0.552 | I13: =I11/I12 -> 0.3504067691 | J13: 0.3448543731 | K13: 0.2880461352 | L13: 0.2877277771 | M13: 0.2475790303 | N13: 0.2432136424 | O13: 0.1993367873 | P13: 0.1863643099

Sheet Transaction Volume
A1: Index
A5: Historical Series Spreadsheet
A7: Transaction Volume
A8: (In millions of reais)
B10: 3M20 | C10: 6M20 | D10: 9M20 | E10: 2020 | F10: 3M21 | G10: 6M21 | H10: 9M21 | I10: 2021 | J10: 3M22 | K10: 6M22 | L10: 9M22 | M10: 2022 | N10: 3M23 | O10: 3M23
A11: Investment Banking
A12: Announced Volume | B12: 30059.07 | C12: 33775.42 | D12: 66677.946 | E12: 108059.492 | F12: 17091.5 | G12: 60561.9201 | H12: 61449.9201 | I12: 88737.1103 | J12: 984 | K12: 40181.60477 | L12: 40836.60477 | M12: 44470.60477 | N12: 6495 | O12: 9255
A14: Capital Markets
A15: Issuances Volume | B15: 623.468 | C15: 1058.51 | D15: 3360.284152 | E15: 4763.901115 | F15: 537.422 | G15: 1248.37 | H15: 2864.183 | I15: 4110.197 | J15: 1994.4 | K15: 3574.89 | L15: 4366.604 | M15: 5650.568365 | N15: 318.167 | O15: 1692.803366
A17: Treasury Sales & Structuring
A18: Trading Volume (Derivatives + FX) | B18: 5276.709537 | C18: 10677.29688 | D18: 13523.81136 | E18: 17128.79735 | F18: 4026.114851 | G18: 11579.5709 | H18: 17141.41955 | I18: 23382.38575 | J18: 5314.911411 | K18: 10082.43444 | L18: 14849.95748 | M18: 22297.07673 | N18: 6215.153075 | O18: 16835.50509
B20: 1Q20 | C20: 2Q20 | D20: 3Q20 | E20: 4Q20 | F20: 1Q21 | G20: 2Q21 | H20: 3Q21 | I20: 4Q21 | J20: 1Q22 | K20: 2Q22 | L20: 3Q22 | M20: 4Q22 | N20: 1Q23 | O20: 2Q23
A21: Investments
A22: AuM FIPs (Outlet and Pet) | B22: 236.527189 | C22: 237.0735201 | D22: 237.2632519 | E22: 236.958434 | F22: 247.7429672 | G22: 255.3554328 | H22: 254.704015 | I22: 360.497859 | J22: 374.1709469 | K22: 373.4939326 | L22: 372.7963957 | M22: 377.2714339 | N22: 395.5309264 | O22: 394.8559245

Sheet Variation of new FS criteria
A1: Index
B14: Tax on revenues | C14: PIS/COFINS | D14: ISS | E14: Total
B15: Investment Banking (fees) | C15: 0.0925 | D15: 0.05 | E15: 0.1425
B16: Capital Markets (fees) | C16: 4.65% to 9.25% | D16: 0.05 | E16: 9.65% to 14.25%
B17: Capital Revenues | C17: 0.0465 | D17: - | E17: 0.0465
B18: Fees from Fund Management | C18: 0.0365 | D18: 0.02 | E18: 0.0565
C23: 2021 | F23: 2022
B24: R$ million | C24: Previously Presented | D24: Reclassification | E24: Represented | F24: Previously Presented | G24: Reclassification | H24: Represented
B25: Total Revenue1 | C25: 331.2 | D25: 35.8 | E25: 367 | F25: 380.5 | G25: 33 | H25: 413.5
B26: Investment Banking | C26: 156 | D26: 27.6 | E26: 183.6 | F26: 136.9 | G26: 22.7 | H26: 159.6
B27: Capital Markets (fees +TVM accrual) | C27: 83.7 | D27: 7.7 | E27: 91.4 | F27: 86.7 | G27: 9.9 | H27: 96.6
B28: Treasury Sales & Structuring | C28: 52.5 | D28: - | E28: 52.5 | F28: 62.6 | G28: - | H28: 62.6
B29: Investments | C29: 6.4 | D29: 0.5 | E29: 6.9 | F29: 5.1 | G29: 0.4 | H29: 5.5
B30: Capital Revevnues2 | C30: 32.6 | D30: - | E30: 32.6 | F30: 89.2 | G30: - | H30: 89.2
B31: Expenses | C31: -112.2 | D31: -35.8 | E31: -148 | F31: -147.1 | G31: (33,0) | H31: -180.1
B32: Personal | C32: -84.3 | D32: - | E32: -84.3 | F32: -85.3 | G32: - | H32: -85.3
B33: Administrative | C33: -24.3 | D33: - | E33: -24.3 | F33: -53.7 | G33: - | H33: -53.7
B34: Tax on Revenues³ | C34: 0 | D34: -38.4 | E34: -38.4 | F34: 0 | G34: -39 | H34: -39
B35: Others4 | C35: -3.6 | D35: 2.6 | E35: -1 | F35: -8.1 | G35: 6 | H35: -2.1
B36: Operating Result | C36: 219 | D36: - | E36: 219 | F36: 233.4 | G36: - | H36: 233.4
B37: Non-Operating Result | C37: 0.1 | D37: - | E37: 0.1 | F37: -1.2 | G37: - | H37: -1.2
B38: Income Taxes | C38: -80.4 | D38: - | E38: -80.4 | F38: -85.1 | G38: - | H38: -85.1
B39: Net Income | C39: 138.7 | D39: - | E39: 138.7 | F39: 147.1 | G39: - | H39: 147.1

Sheet Dividends Distributed
A1: Index
A5: Historical Series Spreadsheet
A7: Dividends
A8: (In reais)
B10: 2018 | C10: 2019 | D10: 2020 | E10: 2021 | F10: 2022 | G10: 2023*
A11: Per Unit | B11: - | C11: - | D11: - | E11: 0.81 | F11: 0.87 | G11: 0.36
A12: Total | B12: 45860023 | C12: 69921811 | D12: 84298066 | E12: 85046520 | F12: 91346262 | G12: 37798453.44
A14: * Considers the dividends distributed for the first and second quarters of the 2023
